Cogmind - Beta 14 *** ADVENTURER MODE // 2024.09.02 @ 18:20:22 Player: Bert Result: Self-destructed Performance ------------- Evolutions (2) 1000 Regions Visited (3) 600 Robots Destroyed (9) 45 Value Destroyed (290) 290 Prototype IDs (0) 0 Alien Tech Used (0) 0 Bonus (0) 0 TOTAL SCORE: 1935 Bonus ------- None Cogmind --------- Core Integrity 494/550 Matter 280/300 Energy 169/250 System Corruption 0% Temperature Cool (0) Movement Walking (190) Ox1 Location -8/Materials Parts ------- > --- POWER (2) -------- Ion Engine > --- PROPULSION (3) --- Aluminum Leg > --- UTILITY (4) ------ Small Storage Unit Structural Scanner Sensor Array ECM Suite > --- WEAPON (2) ------- Medium Laser > --- INVENTORY (8) ---- Subdweller Power Source Compact Wheel Subdweller Monowheel Heat Sink Improved Heat Sink Light Assault Rifle Welding Torch Peak State ------------ > --- POWER ------------ Ion Engine > --- PROPULSION ------- Aluminum Leg Aluminum Leg > --- UTILITY ---------- Heat Sink Small Storage Unit Sensor Array ECM Suite > --- WEAPON ----------- Medium Laser Small Laser > --- INVENTORY -------- Subdweller Power Source Compact Wheel Subdweller Monowheel Improved Heat Sink Light Assault Rifle Welding Torch [Rating: 10] Favorites ----------- Power Ion Engine Engine Ion Engine Propulsion Compact Wheel Leg Aluminum Leg Wheel Compact Wheel Utility Small Storage Unit Device Sensor Array Storage Small Storage Unit Weapon Medium Laser Energy Gun Medium Laser Build | -11 -10 -10 -8 ------- Run | Yrd Mat Sub Mat Slots Evolved 4 | . . . 4 Power 1 | . . . 1 Propulsion 1 | . . . 1 Utility 2 | . . . 2 Weapon . | . . . . Parts Attached 17 | 6 2 6 3 Power 2 | 1 . 1 . Engine 2 | 1 . 1 . Core . | . . . . Reactor . | . . . . Propulsion 6 | 2 . 4 . Treads . | . . . . Leg 2 | . . 2 . Wheel 4 | 2 . 2 . Hover . | . . . . Flight . | . . . . Utility 7 | 1 2 1 3 Device 6 | . 2 1 3 Storage 1 | 1 . . . Processor . | . . . . Hackware . | . . . . Protection . | . . . . Artifact . | . . . . Weapon 2 | 2 . . . Energy Gun 2 | 2 . . . Energy Cannon . | . . . . Ballistic Gun . | . . . . Ballistic Cannon . | . . . . Launcher . | . . . . Special Weapon . | . . . . Impact Weapon . | . . . . Slashing Weapon . | . . . . Piercing Weapon . | . . . . Special Melee Weapon . | . . . . Unidentified Prototypes . | . . . . Parts Lost 4 | . . 2 2 Power . | . . . . Propulsion 2 | . . 1 1 Utility 1 | . . 1 . Weapon 1 | . . . 1 Highest Loss Streak 2 | . . 1 2 To Critical Strikes . | . . . . Average Slot Usage (%) 93 | . 99 97 75 Engine 13 | . 14 14 9 Leg 10 | . . 12 18 Wheel 15 | . 28 14 . Device 14 | . 13 12 23 Storage 13 | . 14 14 9 Energy Gun 26 | . 28 28 16 Peak Build Rating 10 | 6 7 8 10 Average Rating 7 | 4 6 7 8 On Entrance 5 | . 6 7 8 Naked Turns . | . . . . Heaviest Build 17 | 13 14 14 17 Greatest Support 32 | 32 32 32 20 Greatest Overweight (x) . | . . . . Average Overweight (x) . | . . . . Largest Inventory Capacity 8 | 8 8 8 8 Average Capacity 7 | 6 8 8 8 Most Carried 8 | 4 8 8 8 Average Carried 6 | 2 6 7 5 Final Capacity 8 | 8 8 8 8 Final Carried 8 | 4 8 8 7 Class Distribution -------------------- 85% | Mutant 9% | Scavenger-Mutant 5% | Infiltrator-Mutant Dominant Class ---------------- Mutant | -10/Materials Mutant | -10/Subcaves Mutant | -8/Materials Resources | -11 -10 -10 -8 ----------- Run | Yrd Mat Sub Mat Matter Collected 335 | 235 45 55 . Remotely . | . . . . Salvage Created 404 | . 183 221 . Parts 18 | . 8 10 . Haulers Intercepted . | . . . . Recyclers Shooed 1 | . 1 . . Parts Field Recycled . | . . . . Retrieved Matter . | . . . . Parts Self-Destructed 5 | . . 5 . Prevented . | . . . . Kills | -11 -10 -10 -8 ------- Run | Yrd Mat Sub Mat Combat Hostiles Destroyed 7 | . 2 5 . Guns 7 | . 2 5 . Classes Destroyed 4 | . 3 1 . Recycler 1 | . 1 . . Watcher 1 | . 1 . . Grunt 2 | . 2 . . Subdweller 5 | . . 5 . Best Kill Streak 3 | . 3 2 . Combat Bots Only 2 | . 2 2 . Max Kills in Single Turn 1 | . 1 1 . Gunslinging . | . . . . Exploded . | . . . . Melee . | . . . . Uniques/NPCs Destroyed . | . . . . Combat | -11 -10 -10 -8 -------- Run | Yrd Mat Sub Mat Hostile Shots Fired 78 | . 10 33 35 Missed 29 | . 6 8 15 Damage Taken 679 | . 32 414 233 Core 225 | . 8 161 56 Absorbed by Shields . | . . . . Ignored by Resistances 189 | . 10 114 65 Core Remaining (%) 66 | 100 . 32 . Volleys Fired 45 | . 10 33 2 Largest 2 | . 2 2 2 Hottest 90 | . 90 90 90 Shots Fired 85 | . 20 61 4 Gun 85 | . 20 61 4 Cannon . | . . . . Launcher . | . . . . Special . | . . . . Kinetic . | . . . . Thermal 85 | . 20 61 4 Explosive . | . . . . Electromagnetic . | . . . . Robot Hit Streak 32 | . 18 32 1 Robot Miss Streak 1 | . . 1 1 Penetration Max . | . . . . Secondary Targets 1 | . . 1 . Max Gunslinging Chain 1 | . . 1 . Shots Hit Robots 64 | . 18 44 2 Core Hits 21 | . 7 14 . Critical Kills . | . . . . Critical Parts Destroyed . | . . . . Critical Strikes 3 | . 1 2 . Burn 3 | . 1 2 . Melee Attacks . | . . . . Impact . | . . . . Slashing . | . . . . Piercing . | . . . . Sneak Attacks . | . . . . Combat Hostiles . | . . . . Follow-up Attacks . | . . . . Damage Inflicted 773 | . 211 539 23 Guns 773 | . 211 539 23 Cannons . | . . . . Explosions . | . . . . Melee . | . . . . Ramming . | . . . . Kinetic . | . . . . Thermal 773 | . 211 539 23 Explosive . | . . . . Electromagnetic . | . . . . Impact . | . . . . Slashing . | . . . . Piercing . | . . . . Highest Corruption . | . . . . Average Corruption . | . . . . Corruption Purged . | . . . . Corruption Blocked . | . . . . Overload Shots . | . . . . Overflow Damage . | . . . . Projectiles . | . . . . Explosions . | . . . . Melee . | . . . . Knockbacks . | . . . . Impact . | . . . . Kinetic . | . . . . Secondary . | . . . . Self-Inflicted Damage . | . . . . Shots . | . . . . Rammed . | . . . . Targets Rammed . | . . . . Kicked . | . . . . Crushed . | . . . . Highest Temperature 274 | . 274 . 24 Average Temperature 115 | . 134 . 12 Received Heat Transfer 174 | . 24 51 99 Siege Activations . | . . . . Robots Corrupted . | . . . . Combat Hostiles . | . . . . Parts Fried . | . . . . Impact Corruptions . | . . . . Robots Melted . | . . . . Combat Hostiles . | . . . . Parts Melted 7 | . 3 4 . Heat Transferred 2303 | . 644 1609 50 Parts Sabotaged . | . . . . Parts Stolen . | . . . . Parts Stripped . | . . . . Power Chain Reactions . | . . . . Alert | -11 -10 -10 -8 ------- Run | Yrd Mat Sub Mat Peak Influence 52 | . 52 . 15 Initial . | . . . . Average 17 | . 31 . 7 Maximum Alert Level . | . . . . Low Security (%) 100 | 100 100 . 100 Level 1 . | . . . . Level 2 . | . . . . Level 3 . | . . . . Level 4 . | . . . . Level 5 . | . . . . High Security . | . . . . Max Security . | . . . . Squads Dispatched . | . . . . Investigation . | . . . . Extermination . | . . . . Reinforcement . | . . . . Assault . | . . . . Garrison . | . . . . Intercept . | . . . . Searches Triggered . | . . . . Construction Impeded . | . . . . Haulers Reinforced . | . . . . Active Scanning Responses . | . . . . Cargo Convoy Interrupts . | . . . . Stealth | -11 -10 -10 -8 --------- Run | Yrd Mat Sub Mat Distress Signals . | . . . . Communications Jammed . | . . . . Distress Signals . | . . . . Times Spotted 15 | . 3 6 6 Peak Tracking Total 6 | . 2 2 6 Tactical Retreats 1 | . . 1 . Traps | -11 -10 -10 -8 ------- Run | Yrd Mat Sub Mat Traps Triggered . | . . . . Indirectly . | . . . . Trap Hack Attempts . | . . . . Triggered . | . . . . Disarmed . | . . . . Reprogrammed . | . . . . Reused . | . . . . Traps Extracted . | . . . . Installed . | . . . . Triggered . | . . . . Machines | -11 -10 -10 -8 ---------- Run | Yrd Mat Sub Mat Machines Disabled . | . . . . Max in Single Turn . | . . . . Machines Repaired . | . . . . Machines Dismantled . | . . . . Machines Sabotaged . | . . . . Overloaded Fab Kills . | . . . . Hacking | -11 -10 -10 -8 --------- Run | Yrd Mat Sub Mat Machines Accessed . | . . . . Terminals . | . . . . Fabricators . | . . . . Repair Stations . | . . . . Recycling Units . | . . . . Scanalyzers . | . . . . Garrison Access . | . . . . Total Hacks . | . . . . Successful . | . . . . Failed . | . . . . Catastrophic . | . . . . Database Lockouts . | . . . . Manual . | . . . . Terminals . | . . . . Fabricators . | . . . . Repair Stations . | . . . . Recycling Units . | . . . . Scanalyzers . | . . . . Garrison Access . | . . . . Terminal Hacks . | . . . . Fabricator Hacks . | . . . . Repair Station Hacks . | . . . . Recycling Unit Hacks . | . . . . Scanalyzer . | . . . . Garrison Access Hacks . | . . . . Unauthorized Hacks . | . . . . Terminals . | . . . . Fabricators . | . . . . Repair Stations . | . . . . Recycling Units . | . . . . Scanalyzers . | . . . . Garrison Access . | . . . . Data Cores Recovered . | . . . . Used . | . . . . Hacking Detections . | . . . . Full Trace Events . | . . . . Feedback Events . | . . . . Feedback Blocked . | . . . . Robot Schematics Acquired . | . . . . Robots Built . | . . . . Authchips . | . . . . Time . | . . . . Total Robot Build Rating . | . . . . Part Schematics Acquired . | . . . . Parts Built . | . . . . Authchips . | . . . . Time . | . . . . Total Part Build Rating . | . . . . Parts Repaired . | . . . . Time . | . . . . Parts Recycled . | . . . . Recycled Matter . | . . . . Retrieved Matter . | . . . . Retrieved Components . | . . . . Parts Scanalyzed . | . . . . Part Schematics Acquired . | . . . . Parts Damaged . | . . . . Bothacking | -11 -10 -10 -8 ------------ Run | Yrd Mat Sub Mat Used RIF Installer . | . . . . Robots Hacked . | . . . . Non-combat . | . . . . Combat . | . . . . Robot Hacks Applied . | . . . . Relay Couplers Released . | . . . . Fabnet Peak Effective % . | . . . . Robots Rewired . | . . . . Allies Hacked . | . . . . Hacks Repelled . | . . . . Allies | -11 -10 -10 -8 -------- Run | Yrd Mat Sub Mat Total Allies . | . . . . Largest Group . | . . . . Highest-Rated Group . | . . . . Highest-Rated Ally . | . . . . Total Orders . | . . . . Ally Attacks . | . . . . Total Damage . | . . . . Kills . | . . . . Allies Corrupted . | . . . . Allies Melted . | . . . . Intel | -11 -10 -10 -8 ------- Run | Yrd Mat Sub Mat Robot Analysis Total . | . . . . Derelict Logs Recovered 1 | . . 1 . Drone Launches . | . . . . Drone Recoveries . | . . . . Exploration | -11 -10 -10 -8 ------------- Run | Yrd Mat Sub Mat Turns Passed 1004 | 89 210 547 158 Spaces Moved 726 | 72 122 412 120 Core 16 | 16 . . . Treads . | . . . . Legs 286 | . . 166 120 Wheels 424 | 56 122 246 . Hover . | . . . . Flight . | . . . . Fastest Speed 50 | 50 100 95 120 Average Speed 106 | 88 100 107 120 Slowest Speed 120 | 100 100 120 120 Overloaded Moves . | . . . . Propulsion Burnouts . | . . . . Robots Hopped . | . . . . Cave-ins Triggered . | . . . . Exploration Rate (%) 18 | 5 19 35 15 Regions Visited 3 Branch Regions 1 Pre-discovered Areas 1 | . . 1 . Known Exits Taken . | . . . . Unknown Exits Taken 3 | 1 1 1 . Scrap Searched . | . . . . Spaces Dug . | . . . . Terrain Destroyed . | . . . . Melee . | . . . . Projectile . | . . . . AOE . | . . . . Terrain Rammed . | . . . . Walls Destroyed . | . . . . Machines Disabled . | . . . . Actions | -11 -10 -10 -8 --------- Run | Yrd Mat Sub Mat Total 876 | 97 191 457 131 Wait 57 | 10 47 . . Move 723 | 71 121 411 120 Hop . | . . . . Pick Up 25 | 10 8 4 3 Fast Attach . | . . . . Attach 15 | 6 2 4 3 Detach 2 | . . 1 1 Swap 2 | . . 2 . Drop 7 | . 3 2 2 Fire 45 | . 10 33 2 Melee . | . . . . Ram . | . . . . Kick . | . . . . Crush . | . . . . Escape Stasis . | . . . . Rewire . | . . . . Trap . | . . . . Miscellaneous . | . . . . Route ------- -11/Scrapyard -10/Materials -10/Subcaves -8/Materials History --------- Turn | Location | Event 9 | -11/Scrapyard | Discovered new exit (range 16) 90 | -11/Scrapyard | Entered Materials 225 | -10/Materials | Discovered new exit (range 10) 300 | -10/Materials | Entered Subcaves 318 | -10/Subcaves | Build established: Mutant 645 | -10/Subcaves | Core integrity fell below 50% 783 | -10/Subcaves | Learned location of Mines (-9) 837 | -10/Subcaves | Discovered new exit (range 5) 847 | -10/Subcaves | Entered Materials 847 | -8/Materials | Evolved 4 slots: Power x1, Propulsion x1, Utility x2 1005 | -8/Materials | Self-destructed Last Messages --------------- 00677_ Acquired Sub. Power Source. 00678_ Dropped Broken Sub. Monowheel. 00679_ Acquired 40 matter. 00683_ Acquired 10 matter. 00690_ Acquired Sub. Monowheel. 00693_ Acquired Broken Sub. Monowheel. 00783_ Acquired derelict log, extracted data. World map updated: -9/Mines. 00837_ EXIT=FOUND PARAMETERS=POWER+1,PROPULSION+1,UTILITY+2 LOCATION=UNKNOWN GOAL=ESCAPE 00847_ Dropped Broken Sub. Monowheel. 00848_ Dropped Ion Engine. 00890_ Acquired ECM Suite. 00934_ Acquired Imp. Heat Sink. 00944_ Acquired Structural Scanner. 00980_ Sml. Laser destroyed. 00982_ Critical hit (Burn: +37). 01004_ Aluminum Leg destroyed. Map ----- +----------------------------------------------------+ | ?????????????????????????????????????????????????? | | ?????????????????????????????????????????????????? | | ??????????????????????????????? ?????????????????? | | ??????????????????????????????? ?????????????????? | | ??????????????????????????????? ?????????????????? | | ???????????????????############ ?????????????????? | | ???????????????????############ ?????????????????? | | ???????????????????## ] # ?????????????????? | | ???????????????????## # ???????????????? | | ???????????????????## # ##???????????????? | | ???????????????????## """ """ # ##???????????????? | | ???????????????????## """ """ # ##???????????????? | | ???????????????????## """ """ # ##???????????????? | | ???????????????????## # ##???????????????? | | ???????????????????## # ##???????????????? | | ???????????????????######+##### #####"???????????? | | ???????????????????### w## #####"???????????? | | ????????????????????## Y #"???????????? | | ????????????????????## # ???????????? | | ????????????????????## + ????????? | | ????????????????????## # ?????? | | ????????????????????## Y # ? ???? | | ????????????????????## ### # ??? [ ????? | | ????????????????????#### ##### # ????? ????? | | ???????????????????? ## ##### # ???????????? | | ??????????????????????## @ ##?##### # ???????????? | | ??????????????????????## ##?##### ##???????????? | | ??????????????????????## ##????## ##?? ###?????? | | ????????????????????? # ##???## ########?????? | | ????????????????????? #g ##???## ### ##?????? | | ????????????????????? gb ##???## + ##?????? | | ????????????????????? # ##???###### ##?????? | | ????????????????????? # ##???###### ##?????? | | ???????????????????? ### ####????????# #"?????? | | ??????????????????? ### ####????????# #??????? | | ????????????????? ?### ############# #??????? | | ?????????????????####?# ##/###?????? | | ?????????????????####?# #?????? | | ??????????????????????# +?????? | | ??????????????????????# """ """ #?????? | | ??????????????????????# """ """ #?????? | | ????????????????######## """ """ ##### #?????? | | ????????????????# # #???? #?????? | | ????????????????# # ] #???? #?????? | | ????????????????# # #????+##????? | | ????????????????# # #???? #????? | | ????????????????# # #?? #????? | | ????????????????# + !! !! # """ !#????? | | ????????????????# # !! ! + "G #????? | | ????????????????# # ######## = # """ #????? | +----------------------------------------------------+ Best States ------------- Heat Dissipation 41 Energy Generation 10 Energy Capacity 250 Matter Stores 300 Matter Capacity 300 Sight Range 16 Robot Scan Range 14 Terrain Scan Range 14 Terrain Scan Density 10 ECM Strength 1 Resistance: KI 20 Resistance: TH 20 Resistance: EX 20 Resistance: EM 20 Resistance: I 20 Resistance: S 20 Resistance: P 20 Evasion (%) 55 Offensive Hacking 10 Item Schematics ----------------- None Robot Schematics ------------------ None Fabricated ------------ Nothing Alien Tech Used ----------------- None Achievements -------------- None Challenges ------------ None Game ------ Seed RecoilIonMace Manual? 0 Play Time 00:07:24 Cumulative 31.5 hours Start 2024.09.02 @ 18:14:09 End 2024.09.02 @ 18:20:22 Sessions 1 Manual Loads 0 Difficulty Adventurer Special Mode None Game No. 66 Rogue 0 Adventurer 66 Explorer 0 Win Type - Total 0 Types 0/0/0/0/0/0/0/0/0 Lore% 22 Gallery% 36 Achievement% 28 Wizard Run 0 Options --------- Layout 0 ASCII 0 Keyboard 1 Movement Numpad Keybinds 0 Fullscreen 1 Font 18/SmallcapsGlow Map View 76x50 Zoom Use 0% Tactical HUD 1 Map Filters NONE Filters NONE Steam 1 RUN: 32d8c8be-243e-49e5-8ba0-0752df3f1d56